fUSD/lending_fUSD_20260202
["ID","MTS","AMOUNT","RATE_DAILY","PERIOD"]
[404248344,1770001831655,-500.72514778,0.00014373,2]
[404248345,1770001831664,-500.0,0.00014373,2]
[404248346,1770001831674,-500.87506962,0.00014373,2]
[404248347,1770001831683,-500.90033899,0.00014373,2]
[404248348,1770001831693,-150.00040582,0.00014477,2]
[404248349,1770001831703,-3009.87,0.00014764,2]
[404248351,1770001831713,-324.13265253,0.00014921,2]
[404248353,1770001831723,-250.0,0.00015,2]
[404248355,1770001831736,-128.23639812,0.00015156,2]
[404248358,1770001831748,-38.42360188,0.00015156,2]
[404248360,1770001831758,-1875.84,0.00015187,2]
[404248362,1770001831767,-7168.14116852,0.0001523,2]
[404248364,1770001831780,-790.78570546,0.0001523,2]
[404248366,1770001831790,-172.43445644,0.0001523,2]
[404248368,1770001831799,-923.66557005,0.0001523,2]
[404248370,1770001831812,-500.0,0.00015233,2]
[404248373,1770001831823,-200.0,0.00015241,2]
[404248375,1770001831834,-298.56500065,0.00015317,2]
[404248377,1770001831844,-225.795987,0.00015326,2]
[404248379,1770001831853,-500.0,0.00015326,2]
[404248381,1770001831862,-368.25131988,0.00015326,2]
[404248383,1770001831873,-171.73446599,0.00015326,2]
[404248385,1770001831882,-500.0,0.00015326,2]
[404248387,1770001831891,-304.75672637,0.00015326,2]
[404248389,1770001831901,-500.0,0.00015326,2]
[404248391,1770001831910,-867.51028229,0.00015326,2]
[404248393,1770001831920,-500.0,0.00015326,2]
[404248395,1770001831929,-867.51028229,0.00015326,2]
[404248397,1770001831939,-301.58244404,0.00015326,2]
[404248398,1770001831948,-626.08442207,0.00015326,2]
[404248399,1770001831957,-438.52333747,0.00015326,2]
[404248400,1770001831968,-428.98694482,0.00015326,2]
[404248401,1770001831979,-867.51028229,0.00015326,2]
[404248402,1770001831990,-867.51028229,0.00015326,2]
[404248403,1770001832000,-867.51028229,0.00015326,2]
[404248404,1770001832009,-867.51028229,0.00015326,2]
[404248405,1770001832020,-867.51028229,0.00015326,2]
[404248406,1770001832029,-867.51028229,0.00015326,2]
[404248407,1770001832039,-867.51028229,0.00015326,2]
[404248408,1770001832048,-867.51028229,0.00015326,2]
[404248409,1770001832061,-436.28340015,0.00015326,2]
[404248410,1770001832072,-431.22688214,0.00015326,2]
[404248411,1770001832081,-134.4453268,0.00015326,2]
[404248412,1770001832092,-335.26580545,0.00015326,2]
[404248413,1770001832122,-342.76139626,0.00015326,2]
[404248414,1770001832146,-55.03775378,0.00015326,2]
[404248415,1770001832157,-867.51028229,0.00015326,2]
[404248416,1770001832166,-867.51028229,0.00015326,2]
[404248417,1770001832176,-867.51028229,0.00015326,2]
[404248418,1770001832185,-867.51028229,0.00015326,2]
[404248419,1770001832195,-867.51028229,0.00015326,2]
[404248420,1770001832205,-867.51028229,0.00015326,2]
[404248421,1770001832215,-867.51028229,0.00015326,2]
[404248422,1770001832225,-867.51028229,0.00015326,2]
[404248423,1770001832234,-867.51028229,0.00015326,2]
[404248424,1770001832244,-867.51028229,0.00015326,2]
[404248425,1770001832254,-867.51028229,0.00015326,2]
[404248426,1770001832264,-867.51028229,0.00015326,2]
[404248427,1770001832275,-867.51028229,0.00015326,2]
[404248428,1770001832286,-867.51028229,0.00015326,2]
[404248429,1770001832296,-867.51028229,0.00015326,2]
[404248430,1770001832305,-867.51028229,0.00015326,2]
[404248431,1770001832315,-867.51028229,0.00015326,2]
[404248432,1770001832326,-867.51028229,0.00015326,2]
[404248433,1770001832336,-867.51028229,0.00015326,2]
[404248434,1770001832346,-11.82988962,0.00015326,2]
[404248435,1770001832358,-855.68039267,0.00015326,2]
[404248436,1770001832369,-867.51028229,0.00015326,2]
[404248437,1770001832379,-276.80932504,0.00015326,2]
[404248438,1770001832391,-590.70095725,0.00015326,2]
[404248439,1770001832401,-867.51028229,0.00015326,2]
[404248440,1770001832411,-867.51028229,0.00015326,2]
[404248441,1770001832421,-254.10685669,0.00015326,2]
[404248442,1770001832434,-613.4034256,0.00015326,2]
[404248443,1770001832444,-867.51028229,0.00015326,2]
[404248444,1770001832453,-535.47414515,0.00015326,2]
[404248445,1770001832466,-332.03613714,0.00015326,2]
[404248446,1770001832476,-681.98931294,0.00015326,2]
[404248447,1770001832492,-185.52096935,0.00015326,2]
[404248448,1770001832502,-733.42803065,0.00015326,2]
[404248449,1770001837612,-134.08225164,0.00015326,2]
[404248450,1770001837621,-867.51028229,0.00015326,2]
[404248451,1770001837632,-867.51028229,0.00015326,2]
[404248452,1770001837642,-867.51028229,0.00015326,2]
[404248453,1770001837651,-867.51028229,0.00015326,2]
[404248454,1770001837661,-867.51028229,0.00015326,2]
[404248455,1770001837670,-867.51028229,0.00015326,2]
[404248456,1770001837680,-867.51028229,0.00015326,2]
[404248457,1770001837689,-867.51028229,0.00015326,2]
[404248458,1770001837699,-867.51028229,0.00015326,2]
[404248459,1770001837709,-867.51028229,0.00015326,2]
[404248460,1770001837718,-867.51028229,0.00015326,2]
[404248461,1770001837727,-867.51028229,0.00015326,2]
[404248462,1770001837737,-867.51028229,0.00015326,2]
[404248463,1770001837749,-867.51028229,0.00015326,2]
[404248464,1770001837759,-867.51028229,0.00015326,2]
[404248465,1770001837768,-867.51028229,0.00015326,2]
[404248467,1770001837778,-867.51028229,0.00015326,2]
[404248469,1770001837787,-858.83517946,0.00015326,2]
[404248471,1770001837796,-858.83517946,0.00015326,2]
[404248473,1770001837805,-858.83517946,0.00015326,2]
[404248475,1770001837815,-858.83517946,0.00015326,2]
[404248477,1770001837824,-858.83517946,0.00015326,2]
[404248479,1770001837834,-858.83517946,0.00015326,2]
[404248481,1770001837843,-858.83517946,0.00015326,2]
[404248483,1770001837852,-858.83517946,0.00015326,2]
[404248485,1770001837862,-858.83517946,0.00015326,2]
[404248487,1770001837871,-858.83517946,0.00015326,2]
[404248489,1770001837881,-858.83517946,0.00015326,2]
[404248491,1770001837890,-858.83517946,0.00015326,2]
[404248493,1770001837899,-858.83517946,0.00015326,2]
[404248495,1770001837908,-858.83517946,0.00015326,2]
[404248497,1770001837917,-858.83517946,0.00015326,2]
[404248499,1770001837927,-858.83517946,0.00015326,2]
[404248501,1770001837940,-858.83517946,0.00015326,2]
[404248503,1770001837949,-858.83517946,0.00015326,2]
[404248505,1770001837959,-858.83517946,0.00015326,2]
[404248507,1770001837968,-858.83517946,0.00015326,2]
[404248509,1770001837978,-858.83517946,0.00015326,2]
[404248511,1770001837991,-858.83517946,0.00015326,2]
[404248513,1770001838000,-858.83517946,0.00015326,2]
[404248515,1770001838010,-858.83517946,0.00015326,2]
[404248517,1770001838019,-858.83517946,0.00015326,2]
[404248519,1770001838030,-858.83517946,0.00015326,2]
[404248521,1770001838040,-858.83517946,0.00015326,2]
[404248523,1770001838049,-858.83517946,0.00015326,2]
[404248525,1770001838060,-858.83517946,0.00015326,2]
[404248527,1770001838070,-858.83517938,0.00015326,2]
[404248529,1770001838079,-81119.11403501,0.00015327,2]
[404248531,1770001838095,-1650.0,0.00015327,2]
[404248534,1770001838106,-897.4395005,0.00015327,2]
[404248536,1770001838117,-1407.60412328,0.00015327,2]
[404248539,1770001838133,-771.86958136,0.00015327,2]
[404248541,1770001838144,-73184.8726052,0.00015327,2]
[404248544,1770001838162,-229499.99999997,0.00015327,2]
[404248553,1770001839720,-2511469.10015468,0.00015327,2]
[404248554,1770001839730,-162.0,0.0001533,2]
[404248555,1770001839739,-200.0,0.00015351,2]
[404248556,1770001839749,-731.28,0.00015423,2]
[404248557,1770001839758,-4646.39800844,0.00015427,2]
[404248558,1770001839767,-500.0,0.00015454,2]
[404248559,1770001839777,-255.0,0.00015493,2]
[404248560,1770001839786,-162.0,0.000155,2]
[404248561,1770001839796,-162.0,0.000155,2]
[404248562,1770001839806,-7958.92687391,0.00015527,2]
[404248563,1770001839816,-166.66,0.00015657,2]
[404248564,1770001839825,-923.66557003,0.00015764,2]
[404248565,1770001839834,-1680.0,0.00015807,2]
[404248566,1770001839843,-7958.92687391,0.00015823,2]
[404248567,1770001839853,-574.0,0.00015836,2]
[404248568,1770001839862,-198.28,0.00015836,2]
[404248569,1770001839871,-166.66,0.00015933,2]
[404248570,1770001839881,-150.00040582,0.00015966,2]
[404248571,1770001839891,-3047.13568602,0.00016034,2]
[404248572,1770001839901,-237.81204023,0.00016086,2]
[404248573,1770001839911,-627.58973672,0.00016086,2]
[404248574,1770001839921,-1107.14268616,0.00016086,2]
[404248575,1770001839930,-330.62584882,0.00016115,2]
[404248576,1770001839939,-7958.92687391,0.0001612,2]
[404248577,1770001839949,-166.66,0.00016157,2]
[404248578,1770001839958,-288.76892517,0.00016192,2]
[404248579,1770001839967,-870.867,0.00016192,2]
[404248580,1770001839977,-151.0,0.00016206,2]
[404248581,1770001839989,-151.0,0.00016206,2]
[404248582,1770001840000,-151.0,0.00016206,2]
[404248583,1770001840010,-500.0,0.00016206,2]
[404248584,1770001840019,-151.0,0.00016206,2]
[404248585,1770001840030,-500.0,0.00016206,2]
[404248586,1770001840039,-500.0,0.00016206,2]
[404248587,1770001840050,-151.0,0.00016206,2]
[404248588,1770001840074,-151.0,0.00016206,2]
[404248589,1770001840086,-500.0,0.00016206,2]
[404248590,1770001840096,-500.0,0.00016206,2]
[404248591,1770001840107,-151.0,0.00016206,2]
[404248592,1770001840118,-151.0,0.00016206,2]
[404248593,1770001840128,-500.0,0.00016206,2]
[404248594,1770001840139,-151.0,0.00016206,2]
[404248595,1770001840150,-500.0,0.00016206,2]
[404248596,1770001840162,-151.0,0.00016206,2]
[404248597,1770001840172,-500.0,0.00016206,2]
[404248598,1770001840183,-151.0,0.00016206,2]
[404248599,1770001840192,-500.0,0.00016206,2]
[404248600,1770001840203,-500.0,0.00016206,2]
[404248602,1770001840212,-500.0,0.00016206,2]
[404248604,1770001840221,-500.0,0.00016206,2]
[404248606,1770001840230,-500.0,0.00016206,2]
[404248608,1770001840240,-500.0,0.00016206,2]
[404248610,1770001840249,-500.0,0.00016206,2]
[404248612,1770001840259,-500.0,0.00016206,2]
[404248614,1770001840268,-500.0,0.00016206,2]
[404248616,1770001840278,-500.0,0.00016206,2]
[404248618,1770001840287,-428.20801284,0.00016206,2]
[404248620,1770001840296,-500.0,0.00016206,2]
[404248622,1770001840306,-500.0,0.00016215,2]
[404248624,1770001840319,-500.0,0.00016215,2]
[404248626,1770001840328,-500.89784707,0.00016215,2]
[404248628,1770001840337,-500.0,0.00016215,2]
[404248630,1770001840346,-500.0,0.00016215,2]
[404248632,1770001840356,-500.0,0.00016215,2]
[404248634,1770001840365,-500.0,0.00016215,2]
[404248636,1770001840374,-500.0,0.00016215,2]
[404248638,1770001840384,-500.0,0.00016215,2]
[404248640,1770001840394,-500.0,0.00016215,2]
[404248642,1770001840403,-500.0,0.00016215,2]
[404248644,1770001840414,-500.0,0.00016215,2]
[404248646,1770001840424,-500.0,0.00016215,2]
[404248648,1770001840434,-500.0,0.00016215,2]
[404248650,1770001840444,-500.0,0.00016215,2]
[404248652,1770001840454,-464.35211832,0.00016215,2]
[404248654,1770001840464,-500.0,0.00016215,2]
[404248656,1770001840473,-500.0,0.00016215,2]
[404248658,1770001840483,-486.90150068,0.00016215,2]
[404248660,1770001840492,-500.0,0.00016215,2]
[404248662,1770001840501,-500.0,0.00016215,2]
[404248664,1770001840510,-500.0,0.00016215,2]
[404248666,1770001840519,-500.89178293,0.00016215,2]
[404248668,1770001840528,-501.02558099,0.00016215,2]
[404248670,1770001840538,-500.0,0.00016215,2]
[404248672,1770001840547,-500.0,0.00016215,2]
[404248674,1770001840556,-200.70028911,0.00016215,2]
[404248676,1770001840565,-500.0,0.00016215,2]
[404248678,1770001840575,-500.0,0.00016215,2]
[404248680,1770001840584,-500.0,0.00016215,2]
[404248682,1770001840593,-500.0,0.00016215,2]
[404248684,1770001840602,-550.09529227,0.00016215,2]
[404248686,1770001840611,-500.0,0.00016215,2]
[404248688,1770001840621,-500.0,0.00016215,2]
[404248690,1770001840631,-500.0,0.00016215,2]
[404248691,1770001840640,-500.0,0.00016215,2]
[404248693,1770001840649,-500.0,0.00016215,2]
[404248694,1770001840658,-500.0,0.00016215,2]
[404248695,1770001840667,-500.0,0.00016215,2]
[404248696,1770001840676,-500.0,0.00016215,2]
[404248697,1770001840685,-500.0,0.00016215,2]
[404248698,1770001840694,-500.0,0.00016215,2]
[404248699,1770001840703,-500.0,0.00016215,2]
[404248700,1770001840712,-500.0,0.00016215,2]
[404248701,1770001840721,-500.0,0.00016215,2]
[404248703,1770001840731,-185.46503654,0.00016215,2]
[404248705,1770001840740,-291.61164288,0.00016215,2]
[404248707,1770001840749,-8495.6286,0.00016238,2]
[404248709,1770001840759,-166.66,0.00016269,2]
[404248711,1770001840768,-923.66557003,0.00016298,2]
[404248713,1770001840778,-2835.0,0.000164,2]
[404248715,1770001840787,-7958.92687391,0.00016417,2]
[404248718,1770001840798,-277.63511856,0.00016438,2]
[404248720,1770001840807,-1872.11781497,0.00016438,2]
[404248722,1770001840818,-500.0,0.00016438,2]
[404248724,1770001840827,-302.00680501,0.00016438,2]
[404248726,1770001840838,-1371.45131389,0.00016438,2]
[404248728,1770001840847,-1371.45131389,0.00016438,2]
[404248730,1770001840857,-1371.45131389,0.00016438,2]
[404248732,1770001840866,-1371.45131389,0.00016438,2]
[404248734,1770001840875,-1371.45131389,0.00016438,2]
[404248736,1770001840885,-1371.45131389,0.00016438,2]
[404248738,1770001840895,-1371.45131389,0.00016438,2]
[404248740,1770001840905,-1371.45131389,0.00016438,2]
[404248742,1770001840913,-1371.45131389,0.00016438,2]
[404248744,1770001840923,-1371.45131389,0.00016438,2]
[404248746,1770001840932,-1371.45131389,0.00016438,2]
[404248748,1770001840941,-1371.45131389,0.00016438,2]
[404248750,1770001840951,-1371.45131389,0.00016438,2]
[404248752,1770001840960,-1371.45131389,0.00016438,2]
[404248755,1770001840970,-1371.45131389,0.00016438,2]
[404248757,1770001840980,-1371.45131389,0.00016438,2]
[404248759,1770001840992,-1371.45131389,0.00016438,2]
[404248761,1770001841001,-1371.45131389,0.00016438,2]
[404248763,1770001841011,-1371.45131389,0.00016438,2]
[404248765,1770001841020,-1371.45131389,0.00016438,2]
[404248767,1770001841032,-1371.45131389,0.00016438,2]
[404248769,1770001841042,-1371.45131389,0.00016438,2]
[404248771,1770001841051,-1371.45131389,0.00016438,2]
[404248773,1770001841061,-1371.45131389,0.00016438,2]
[404248775,1770001841072,-1371.45131389,0.00016438,2]
[404248777,1770001841081,-1371.45131389,0.00016438,2]
[404248779,1770001841091,-1371.45131389,0.00016438,2]
[404248781,1770001841100,-1371.45131389,0.00016438,2]
[404248783,1770001841110,-1371.45131389,0.00016438,2]
[404248785,1770001841120,-1371.45131389,0.00016438,2]
[404248787,1770001841131,-1371.45131389,0.00016438,2]
[404248789,1770001841141,-1371.45131389,0.00016438,2]
[404248792,1770001841151,-1371.45131389,0.00016438,2]
[404248794,1770001841160,-1371.45131389,0.00016438,2]
[404248796,1770001841169,-1371.45131389,0.00016438,2]
[404248798,1770001841178,-1371.45131389,0.00016438,2]
[404248800,1770001841188,-1371.45131389,0.00016438,2]
[404248802,1770001841197,-1371.45131389,0.00016438,2]
[404248804,1770001841207,-1371.45131389,0.00016438,2]
[404248806,1770001841216,-1371.45131389,0.00016438,2]
[404248808,1770001841225,-1371.45131389,0.00016438,2]
[404248810,1770001841235,-1371.45131389,0.00016438,2]
[404248812,1770001841243,-1371.45131389,0.00016438,2]
[404248814,1770001841253,-1371.45131389,0.00016438,2]
[404248816,1770001841262,-1371.45131389,0.00016438,2]
[404248818,1770001841271,-1371.45131389,0.00016438,2]
[404248820,1770001841281,-1371.45131389,0.00016438,2]
[404248822,1770001841290,-1371.45131389,0.00016438,2]
[404248824,1770001841299,-1371.45131389,0.00016438,2]
[404248826,1770001841309,-1371.45131389,0.00016438,2]
[404248828,1770001841319,-1371.45131389,0.00016438,2]
[404248830,1770001841329,-1371.45131389,0.00016438,2]
[404248832,1770001841339,-1371.45131389,0.00016438,2]
[404248834,1770001841348,-1371.45131389,0.00016438,2]
[404248836,1770001841358,-1343.21555155,0.00016438,2]
[404248838,1770001841368,-1343.21555155,0.00016438,2]
[404248840,1770001841377,-1343.21555155,0.00016438,2]
[404248842,1770001841386,-1343.21555155,0.00016438,2]
[404248844,1770001841396,-1343.21555155,0.00016438,2]
[404248846,1770001841405,-1343.21555155,0.00016438,2]
[404248848,1770001841415,-1343.21555155,0.00016438,2]
[404248850,1770001841424,-1343.21555155,0.00016438,2]
[404248852,1770001841433,-1343.21555155,0.00016438,2]
[404248854,1770001841443,-1343.21555155,0.00016438,2]
[404248856,1770001841453,-1343.21555155,0.00016438,2]
[404248858,1770001841462,-1343.21555155,0.00016438,2]
[404248860,1770001841471,-1343.21555155,0.00016438,2]
[404248862,1770001841482,-1343.21555155,0.00016438,2]
[404248864,1770001841495,-1343.21555155,0.00016438,2]
[404248866,1770001841507,-1343.21555155,0.00016438,2]
[404248868,1770001841518,-1343.21555155,0.00016438,2]
[404248870,1770001841528,-1343.21555155,0.00016438,2]
[404248872,1770001841538,-1343.21555155,0.00016438,2]
[404248874,1770001841547,-1343.21555155,0.00016438,2]
[404248876,1770001841557,-1343.21555155,0.00016438,2]
[404248878,1770001841568,-1343.21555155,0.00016438,2]
[404248880,1770001841578,-1343.21555155,0.00016438,2]
[404248882,1770001841588,-1343.21555155,0.00016438,2]
[404248884,1770001841597,-1343.21555155,0.00016438,2]
[404248886,1770001841608,-1343.21555155,0.00016438,2]
[404248888,1770001841618,-1343.21555155,0.00016438,2]
[404248891,1770001841628,-1343.21555155,0.00016438,2]
[404248893,1770001841637,-1343.21555155,0.00016438,2]
[404248895,1770001841647,-1343.21555155,0.00016438,2]
[404248896,1770001841656,-1343.21555155,0.00016438,2]
[404248897,1770001841665,-1343.21555155,0.00016438,2]
[404248899,1770001841674,-1343.21555155,0.00016438,2]
[404248900,1770001841683,-1343.21555152,0.00016438,2]
[404248902,1770001841693,-250.55733734,0.00016438,2]
[404248903,1770001841702,-800.78453244,0.00016438,2]
[404248905,1770001841712,-10091.57601831,0.00016479,2]
[404248907,1770001841721,-159.04434353,0.00016508,2]
[404248908,1770001841731,-172.43445642,0.00016565,2]
[404248910,1770001841741,-166.66,0.00016604,2]
[404248912,1770001841750,-166.66,0.00016657,2]
[404248914,1770001841759,-10792.0,0.00016658,2]
[404248916,1770001841769,-7958.92687391,0.00016713,2]
[404248917,1770001841779,-500.0,0.00016754,2]
[404248919,1770001841788,-1000.0,0.00016763,2]
[404248921,1770001841797,-1000.0,0.00016763,2]
[404248923,1770001841806,-1000.0,0.00016763,2]
[404248924,1770001841816,-1000.0,0.00016763,2]
[404248926,1770001841825,-502.35695832,0.00016763,2]
[404248928,1770001841835,-1001.69538037,0.00016763,2]
[404248930,1770001841844,-517.01569061,0.00016763,2]
[404248932,1770001841853,-1000.0,0.00016763,2]
[404248933,1770001841862,-1000.0,0.00016763,2]
[404248935,1770001841872,-1000.0,0.00016763,2]
[404248937,1770001841881,-1000.0,0.00016763,2]
[404248939,1770001841890,-1000.0,0.00016763,2]
[404248940,1770001841899,-586.45296103,0.00016763,2]
[404248942,1770001841909,-1000.0,0.00016763,2]
[404248944,1770001841918,-1000.0,0.00016763,2]
[404248946,1770001841927,-1000.0,0.00016763,2]
[404248947,1770001841936,-1000.0,0.00016763,2]
[404248949,1770001841946,-501.09302375,0.00016763,2]
[404248951,1770001841956,-1000.0,0.00016763,2]
[404248953,1770001841965,-396.81248005,0.00016763,2]
[404248954,1770001841974,-1000.0,0.00016763,2]
[404248956,1770001841983,-1000.0,0.00016763,2]
[404248957,1770001841995,-1000.0,0.00016763,2]
[404248959,1770001842005,-1003.56149344,0.00016763,2]
[404248961,1770001842015,-501.08336444,0.00016763,2]
[404248963,1770001842025,-1000.0,0.00016763,2]
[404248964,1770001842034,-1042.63998213,0.00016763,2]
[404248966,1770001842044,-1000.0,0.00016763,2]
[404248968,1770001842054,-502.81173723,0.00016763,2]
[404248970,1770001842065,-1000.0,0.00016763,2]
[404248972,1770001842074,-1000.0,0.00016763,2]
[404248973,1770001842083,-1002.69407289,0.00016763,2]
[404248975,1770001842092,-1000.0,0.00016763,2]
[404248977,1770001842102,-1000.0,0.00016763,2]
[404248979,1770001842111,-1145.60955598,0.00016763,2]
[404248981,1770001842121,-987.31307274,0.00016763,2]
[404248983,1770001842130,-1000.0,0.00016763,2]
[404248985,1770001842139,-1000.0,0.00016763,2]
[404248987,1770001842149,-1273.162,0.0001681,2]
[404248988,1770001842158,-161.033,0.0001681,2]
[404248990,1770001842167,-1205.0,0.0001681,2]
[404248992,1770001842177,-925.751,0.0001681,2]
[404248994,1770001842187,-923.66557003,0.00016832,2]
[404248996,1770001842196,-166.66,0.0001694,2]
[404248997,1770001842205,-3047.135686,0.00016967,2]
[404248999,1770001842216,-2445.0,0.00016983,2]
[404249001,1770001842225,-6579.0,0.00016983,2]
[404249003,1770001842236,-3253.0,0.00016983,2]
[404249005,1770001842246,-300.0,0.00017,2]
[404249007,1770001842255,-330.62584881,0.00017008,2]
[404249008,1770001842264,-7958.92687391,0.0001701,2]
[404249010,1770001842273,-4797.72527341,0.00017017,2]
[404249012,1770001842282,-163.0,0.0001704,2]
[404249014,1770001842291,-1656.21924463,0.00017086,2]
[404249015,1770001842300,-2240.9145,0.00017086,2]
[404249017,1770001842309,-322.6107,0.00017099,2]
[404249019,1770001842323,-151.0,0.00017099,2]
[404249021,1770001842333,-1428.38747117,0.00017099,2]
[404249023,1770001842342,-151.0,0.00017099,2]
[404249025,1770001842351,-500.0,0.00017099,2]
[404249027,1770001842361,-250.0,0.00017099,2]
[404249029,1770001842371,-500.0,0.00017099,2]
[404249031,1770001842380,-151.0,0.00017099,2]
[404249032,1770001842389,-500.0,0.00017099,2]
[404249034,1770001842399,-250.0,0.00017099,2]
[404249036,1770001842409,-500.0,0.00017099,2]
[404249038,1770001842418,-151.0,0.00017099,2]
[404249040,1770001842429,-500.0,0.00017099,2]
[404249042,1770001842438,-250.0,0.00017099,2]
[404249044,1770001842447,-500.0,0.00017099,2]
[404249045,1770001842459,-151.0,0.00017099,2]
[404249047,1770001842470,-500.0,0.00017099,2]
[404249049,1770001842479,-250.0,0.00017099,2]
[404249051,1770001842488,-500.0,0.00017099,2]
[404249053,1770001842498,-151.0,0.00017099,2]
[404249055,1770001842507,-500.0,0.00017099,2]
[404249057,1770001842516,-250.0,0.00017099,2]
[404249059,1770001842526,-500.0,0.00017099,2]
[404249060,1770001842535,-151.0,0.00017099,2]
[404249062,1770001842545,-500.0,0.00017099,2]
[404249064,1770001842554,-250.0,0.00017099,2]
[404249066,1770001842565,-500.0,0.00017099,2]
[404249068,1770001842575,-151.0,0.00017099,2]
[404249070,1770001842584,-500.0,0.00017099,2]
[404249072,1770001842594,-250.0,0.00017099,2]
[404249074,1770001842603,-500.0,0.00017099,2]
[404249076,1770001842612,-151.0,0.00017099,2]
[404249078,1770001842624,-500.0,0.00017099,2]
[404249080,1770001842633,-250.0,0.00017099,2]
[404249082,1770001842643,-174.61919141,0.00017099,2]
[404249084,1770001842653,-500.0,0.00017099,2]
[404249085,1770001842662,-151.0,0.00017099,2]
[404249087,1770001842672,-500.0,0.00017099,2]
[404249089,1770001842682,-250.0,0.00017099,2]
[404249091,1770001842693,-500.0,0.00017099,2]
[404249093,1770001842702,-151.0,0.00017099,2]
[404249095,1770001842712,-500.0,0.00017099,2]
[404249097,1770001842722,-250.0,0.00017099,2]
[404249099,1770001842734,-500.0,0.00017099,2]
[404249101,1770001842745,-500.0,0.00017099,2]
[404249103,1770001842755,-209.40437684,0.00017099,2]
[404249104,1770001842764,-250.0,0.00017099,2]
[404249106,1770001842774,-500.0,0.00017099,2]
[404249108,1770001842784,-578.20924308,0.00017099,2]
[404249110,1770001842793,-209.40437684,0.00017099,2]
[404249111,1770001842803,-500.0,0.00017099,2]
[404249112,1770001842812,-500.0,0.00017099,2]
[404249113,1770001842829,-500.0,0.00017099,2]
[404249114,1770001842839,-250.0,0.00017099,2]
[404249115,1770001842850,-500.0,0.00017099,2]
[404249116,1770001842860,-250.0,0.00017099,2]
[404249117,1770001842869,-500.0,0.00017099,2]
[404249118,1770001842879,-250.0,0.00017099,2]
[404249119,1770001842889,-500.0,0.00017099,2]
[404249121,1770001842898,-250.0,0.00017099,2]
[404249123,1770001842908,-500.0,0.00017099,2]
[404249125,1770001842917,-250.0,0.00017099,2]
[404249127,1770001842927,-500.0,0.00017099,2]
[404249129,1770001842937,-250.0,0.00017099,2]
[404249131,1770001842946,-500.0,0.00017099,2]
[404249133,1770001842955,-250.0,0.00017099,2]
[404249135,1770001842965,-500.0,0.00017099,2]
[404249137,1770001842974,-250.0,0.00017099,2]
[404249139,1770001842986,-500.0,0.00017099,2]
[404249141,1770001842999,-250.0,0.00017099,2]
[404249143,1770001843008,-250.0,0.00017099,2]
[404249145,1770001843018,-500.0,0.00017099,2]
[404249147,1770001843029,-250.0,0.00017099,2]
[404249149,1770001843039,-500.0,0.00017099,2]
[404249152,1770001843048,-500.0,0.00017099,2]
[404249155,1770001843057,-500.0,0.00017099,2]
[404249157,1770001843072,-500.0,0.00017099,2]
[404249179,1770001843268,-250.0,0.00017099,2]
[404249181,1770001843278,-500.0,0.00017099,2]
[404249183,1770001843288,-250.0,0.00017099,2]
[404249185,1770001843299,-721.12765535,0.00017099,2]
[404249188,1770001843311,-500.0,0.00017099,2]
[404249190,1770001843331,-250.0,0.00017099,2]
[404249192,1770001843340,-500.0,0.00017099,2]
[404249194,1770001843350,-250.0,0.00017099,2]
[404249196,1770001843360,-500.0,0.00017099,2]
[404249198,1770001843369,-250.0,0.00017099,2]
[404249200,1770001843379,-250.0,0.00017099,2]
[404249202,1770001843389,-500.0,0.00017099,2]
[404249204,1770001843399,-250.0,0.00017099,2]
[404249206,1770001843408,-250.0,0.00017099,2]
[404249208,1770001843418,-344.38825217,0.00017099,2]
[404249210,1770001843427,-250.0,0.00017099,2]
[404249213,1770001843437,-250.0,0.00017099,2]
[404249215,1770001843447,-250.0,0.00017099,2]
[404249217,1770001843457,-250.0,0.00017099,2]
[404249219,1770001843467,-859.80605061,0.00017099,2]
[404249221,1770001843477,-250.0,0.00017099,2]